bitfinex/quotes_SOLUSD_20251119
["timestamp","ask_amount","ask_price","bid_price","bid_amount"]
[1763553423959,18.79096,138.8,138.77,0.69]
[1763553424150,22.12346293,138.8,138.77,0.69]
[1763553424662,18.79096,138.82,138.77,4.02250293]
[1763553424865,18.79096,138.82,138.78,3.33250293]
[1763553425162,3.33250293,138.83,138.79,3.33250293]
[1763553425339,0.67,138.85,138.79,0.69]
[1763553425548,4.00250293,138.85,138.81,3.33250293]
[1763553425751,0.67,138.84,138.81,4.02250293]
[1763553426873,0.67,138.84,138.77,9.78882769]
[1763553426874,4.00250293,138.84,138.77,9.78882769]
[1763553427075,4.00250293,138.84,138.78,2.39]
[1763553427374,0.67,138.83,138.79,3.33250293]
[1763553427548,0.67,138.83,138.78,2.39]
[1763553427549,4.00250293,138.83,138.78,4.02250293]
[1763553427870,4.00250293,138.83,138.79,0.69]
[1763553428045,0.67,138.82,138.79,0.69]
[1763553428845,4.00250293,138.82,138.78,3.33250293]
[1763553429051,4.00250293,138.82,138.79,0.69]
[1763553429052,0.67,138.82,138.79,0.69]
[1763553430675,18.32096,138.86,138.79,4.02250293]
[1763553430841,4.00250293,138.83,138.79,4.02250293]
[1763553431047,0.67,138.85,138.8,4.02250293]
[1763553431248,3.33250293,138.84,138.8,4.02250293]
[1763553431460,3.33250293,138.84,138.81,0.69]
[1763553431663,4.00250293,138.84,138.81,0.69]
[1763553432161,0.67,138.83,138.8,4.02250293]
[1763553432783,0.67,138.83,138.8,3.33250293]
[1763553433090,3.33250293,138.84,138.8,3.33250293]
[1763553433381,4.00250293,138.85,138.81,4.02250293]
[1763553433779,0.67,138.84,138.81,4.02250293]
[1763553433988,0.67,138.84,138.82,0.69]
[1763553435856,4.00250293,138.85,138.82,0.69]
[1763553436987,4.00250293,138.84,138.77,18.12096]
[1763553437281,4.00250293,138.84,138.8,0.69]
[1763553437489,0.67,138.83,138.8,0.69]
[1763553438156,4.00250293,138.83,138.8,0.69]
[1763553438974,0.67,138.83,138.8,0.69]
[1763553442277,0.67,138.83,138.8,4.02250293]
[1763553442996,0.67,138.83,138.81,0.69]
[1763553443406,0.66,138.84,138.81,4.02250293]
[1763553443904,21.65346293,138.86,138.82,0.7]
[1763553444294,22.31346293,138.86,138.82,0.7]
[1763553444487,21.65346293,138.86,138.82,0.7]
[1763553444673,0.66,138.85,138.82,0.7]
[1763553444874,3.99250293,138.85,138.82,0.7]
[1763553448783,0.66,138.84,138.81,0.7]
[1763553448998,0.66,138.84,138.82,0.7]
[1763553449195,3.99250293,138.85,138.82,0.7]
[1763553449379,0.66,138.85,138.82,0.7]
[1763553449690,3.99250293,138.85,138.82,0.7]
[1763553450813,2.790577,138.85,138.82,0.7]
[1763553450984,2.790577,138.84,138.79,4.03250293]
[1763553451178,2.790577,138.84,138.79,4.530577]
[1763553451379,0.66,138.83,138.8,0.7]
[1763553453199,2.130577,138.82,138.78,4.530577]
[1763553453501,2.130577,138.82,138.79,0.7]
[1763553453820,0.66,138.81,138.78,0.7]
[1763553454520,0.66,138.81,138.78,2.830577]
[1763553454719,0.66,138.81,138.79,0.7]
[1763553456224,0.66,138.81,138.79,3.58839946]
[1763553456931,0.66,138.81,138.77,1.7]
[1763553456932,2.790577,138.81,138.77,4.530577]
[1763553457107,2.130577,138.8,138.76,2.830577]
[1763553457315,2.790577,138.8,138.77,3.58839946]
[1763553457619,0.66,138.79,138.77,4.28839946]
[1763553458191,2.130577,138.8,138.77,4.28839946]
[1763553458425,0.66,138.8,138.77,4.28839946]
[1763553459004,0.66,138.8,138.77,0.7]
[1763553459326,0.66,138.8,138.78,4.28839946]
[1763553460914,18.12096,138.82,138.79,2.830577]
[1763553461224,18.78096,138.82,138.79,2.830577]
[1763553461729,18.78096,138.82,138.79,7.11897646]
[1763553462120,18.78096,138.82,138.79,4.98839946]
[1763553462318,0.66,138.82,138.79,4.98839946]
[1763553462519,0.66,138.82,138.8,0.7]
[1763553462737,0.66,138.82,138.79,4.28839946]
[1763553462917,0.66,138.82,138.79,4.98839946]
[1763553464038,0.66,138.82,138.8,0.7]
[1763553464239,0.66,138.82,138.79,4.28839946]
[1763553464447,0.66,138.82,138.79,4.98839946]
[1763553465215,2.790577,138.82,138.79,4.28839946]
[1763553465416,2.790577,138.82,138.79,4.98839946]
[1763553465616,0.66,138.82,138.79,4.98839946]
[1763553469644,0.66,138.82,138.8,0.69]
[1763553471938,20.971537,138.83,138.8,0.69]
[1763553472243,18.84096,138.83,138.8,0.69]
[1763553472613,0.72,138.82,138.8,4.28839946]
[1763553472816,0.72,138.82,138.79,0.69]
[1763553473831,0.72,138.82,138.79,7.10897646]
[1763553474025,2.850577,138.82,138.79,6.41897646]
[1763553474219,2.850577,138.82,138.78,0.69]
[1763553474549,0.72,138.81,138.78,7.79897646]
[1763553475119,2.850577,138.81,138.78,7.79897646]
[1763553475340,2.850577,138.81,138.78,7.10897646]
[1763553475538,0.72,138.8,138.78,7.10897646]
[1763553475845,2.850577,138.81,138.78,7.79897646]
[1763553476143,20.971537,138.83,138.79,0.69]
[1763553476446,20.971537,138.83,138.79,8.48897646]
[1763553476643,0.72,138.82,138.79,8.48897646]
[1763553477852,20.251537,138.83,138.8,0.69]
[1763553478147,0.72,138.82,138.8,0.69]
[1763553478648,20.971537,138.83,138.8,0.69]
[1763553478847,0.72,138.82,138.8,0.69]
[1763553479455,2.850577,138.83,138.8,0.69]
[1763553479840,0.72,138.83,138.8,8.48897646]
[1763553480035,7.65167454,138.84,138.81,0.69]
[1763553480360,0.72,138.83,138.8,8.48897646]
[1763553480747,0.72,138.83,138.8,9.92955346]
[1763553480952,0.72,138.83,138.81,0.69]
[1763553483266,0.72,138.83,138.8,12.31955346]
[1763553483559,0.72,138.83,138.81,0.69]
[1763553484060,0.92,138.86,138.81,2.820577]
[1763553484234,0.92,138.86,138.75,29.90978768]
[1763553484235,0.92,138.86,138.83,2.130577]
[1763553484554,0.92,138.86,138.82,23.072114]
[1763553484758,0.72,138.85,138.82,24.772114]
[1763553485066,0.92,138.86,138.83,0.69]
[1763553485239,0.72,138.85,138.82,24.082114]
[1763553485441,0.72,138.85,138.82,24.772114]
[1763553485638,0.72,138.85,138.82,24.082114]
[1763553485839,0.72,138.85,138.83,0.69]
[1763553487961,0.92,138.86,138.83,2.820577]
[1763553488140,0.2,138.86,138.83,2.820577]
[1763553488340,0.2,138.86,138.84,0.69]
[1763553489066,0.2,138.86,138.84,2.820577]
[1763553489444,0.2,138.86,138.85,2.88714857]
[1763553494072,0.2,138.86,138.85,5.70772557]
[1763553497156,0.2,138.86,138.85,3.57714857]
[1763553497778,0.2,138.86,138.85,2.88714857]
[1763553498275,0.2,138.86,138.85,3.57714857]
[1763553498466,0.2,138.86,138.85,2.88714857]
[1763553498660,0.2,138.86,138.85,3.57714857]
[1763553501663,0.2,138.86,138.85,2.88714857]
[1763553502186,0.2,138.86,138.85,3.54714857]
[1763553503083,0.2,138.86,138.85,2.88714857]
[1763553504682,0.2,138.86,138.85,3.56714857]
[1763553506485,0.2,138.86,138.85,2.88714857]
[1763553507588,0.2,138.86,138.85,3.56714857]
[1763553508196,0.2,138.86,138.85,2.88714857]
[1763553508399,3.020577,138.86,138.85,2.88714857]
[1763553508602,3.020577,138.86,138.79,3.830577]
[1763553508603,21.141537,138.86,138.79,3.830577]
[1763553508895,2.130577,138.84,138.8,10.46882769]
[1763553509066,0.69,138.83,138.8,10.46882769]
[1763553509269,0.69,138.83,138.8,9.78882769]
[1763553509507,2.820577,138.84,138.81,0.68]
[1763553510515,2.820577,138.84,138.8,9.78882769]
[1763553510516,2.130577,138.84,138.8,9.78882769]
[1763553510816,0.69,138.83,138.8,10.46882769]
[1763553511199,3.3297515,138.84,138.8,10.46882769]
[1763553514310,3.3297515,138.84,138.8,9.78882769]
[1763553514513,3.3297515,138.84,138.8,10.46882769]
[1763553516221,3.3297515,138.83,138.8,10.46882769]
[1763553520331,3.3297515,138.83,138.8,0.68]
[1763553527146,3.3297515,138.84,138.8,4.0097515]
[1763553527542,3.3297515,138.84,138.8,21.350463]
[1763553527932,3.3297515,138.84,138.81,0.68]
[1763553529040,4.0197515,138.84,138.81,0.68]
[1763553529945,3.3297515,138.84,138.81,0.68]
[1763553530328,3.9997515,138.84,138.81,0.68]
[1763553531343,20.670463,138.86,138.81,4.0097515]
[1763553531536,21.340463,138.86,138.82,1.7]
[1763553531742,3.3297515,138.85,138.82,2.38]
[1763553532339,3.3297515,138.86,138.83,0.68]
[1763553532535,3.3297515,138.87,138.83,0.68]
[1763553532849,3.9997515,138.87,138.84,1.7]
[1763553533235,3.9997515,138.87,138.84,2.38]
[1763553534237,3.3297515,138.87,138.85,0.68]
[1763553535933,22.3207115,138.88,138.85,0.68]
[1763553537739,4.1997515,138.88,138.85,0.68]
[1763553540455,0.87,138.88,138.85,4.0097515]
[1763553540757,0.2,138.88,138.85,9.039503]
[1763553540938,0.2,138.88,138.86,4.0097515]
[1763553541255,0.2,138.88,138.86,0.68]
[1763553541467,0.2,138.88,138.87,0.68]
[1763553541758,0.2,138.88,138.85,8.359503]
[1763553541956,0.2,138.88,138.86,0.68]
[1763553543351,0.67,138.87,138.84,19.00096]
[1763553543538,0.67,138.87,138.84,24.0307115]
[1763553544058,0.67,138.87,138.84,2.38]
[1763553544255,0.2,138.88,138.85,0.68]
[1763553544559,4.1997515,138.88,138.85,0.68]
[1763553544865,3.3297515,138.87,138.83,18.32096]
[1763553545064,3.9997515,138.87,138.84,2.38]
[1763553547364,0.67,138.87,138.84,2.38]
[1763553548445,0.67,138.87,138.84,1.7]
[1763553548743,0.67,138.87,138.85,0.68]
[1763553549678,3.5297515,138.88,138.85,0.68]
[1763553549969,4.1997515,138.88,138.85,0.68]
[1763553550340,3.5297515,138.88,138.85,0.68]
[1763553550540,0.67,138.87,138.85,0.68]
[1763553551377,0.67,138.87,138.84,2.38]
[1763553552044,3.3297515,138.86,138.77,9.20604574]
[1763553552255,3.3297515,138.86,138.81,22.1307115]
[1763553552571,3.3297515,138.84,138.81,0.68]
[1763553552752,3.3297515,138.84,138.81,2.38]
[1763553552959,3.9997515,138.84,138.81,2.38]
[1763553553261,0.67,138.83,138.81,2.38]
[1763553553464,3.9997515,138.84,138.81,2.38]
[1763553553846,3.9997515,138.84,138.81,0.68]
[1763553554973,0.67,138.83,138.8,2.38]
[1763553555266,3.3297515,138.82,138.8,0.68]
[1763553555460,3.9997515,138.83,138.8,0.68]
[1763553556271,0.67,138.84,138.8,0.68]
[1763553556465,3.3297515,138.83,138.8,0.68]
[1763553557173,3.3297515,138.83,138.79,5.7097515]
[1763553557376,0.67,138.83,138.8,0.68]
[1763553561270,3.9997515,138.83,138.8,0.68]
[1763553561776,4.0197515,138.84,138.8,0.68]
[1763553563976,0.69,138.83,138.8,0.68]
[1763553568562,0.69,138.83,138.8,4.0097515]
[1763553568770,0.69,138.83,138.81,0.66]
[1763553570188,3.3297515,138.82,138.79,2.36]
[1763553570483,3.3297515,138.82,138.79,5.0297515]
[1763553570786,4.0197515,138.82,138.8,0.66]
[1763553571591,4.0197515,138.82,138.79,2.36]
[1763553571761,4.0197515,138.82,138.79,0.66]
[1763553571967,4.0197515,138.81,138.79,0.66]
[1763553572772,4.0197515,138.81,138.78,13.18882769]
[1763553572773,2.82189478,138.81,138.78,13.84882769]
[1763553573185,2.82189478,138.81,138.78,2.36]
[1763553574078,0.69,138.81,138.79,0.66]
[1763553575076,0.69,138.81,138.78,1.7]
[1763553575269,2.82189478,138.81,138.79,0.66]
[1763553576165,20.25285478,138.83,138.79,2.79189478]
[1763553576586,0.69,138.82,138.79,2.79189478]
[1763553576997,0.69,138.82,138.8,0.66]
[1763553578796,20.94285478,138.83,138.8,0.66]
[1763553579197,0.69,138.82,138.8,0.66]
[1763553579493,2.13189478,138.84,138.8,2.79189478]
[1763553579670,22.64285478,138.85,138.8,22.61285478]
[1763553579866,2.82189478,138.84,138.81,0.66]
[1763553584496,2.13189478,138.84,138.81,0.66]
[1763553584696,2.82189478,138.85,138.81,0.66]
[1763553585581,2.13189478,138.85,138.81,0.66]
[1763553585908,2.82189478,138.84,138.81,0.66]
[1763553586209,2.82189478,138.84,138.81,2.36]
[1763553586904,2.82189478,138.84,138.82,0.66]
[1763553587091,2.13189478,138.84,138.82,0.66]
[1763553587277,2.82189478,138.84,138.81,1.7]
[1763553587478,2.13189478,138.84,138.82,0.66]
[1763553587679,2.82189478,138.84,138.82,0.66]
[1763553588703,2.82189478,138.84,138.81,1.7]
[1763553589199,2.82189478,138.84,138.82,0.66]
[1763553590782,2.13189478,138.84,138.81,1.7]
[1763553590984,0.67,138.84,138.81,2.38]
[1763553591179,2.80189478,138.84,138.81,2.38]
[1763553591579,2.13189478,138.83,138.81,1.7]
[1763553591799,2.13189478,138.83,138.82,0.68]
[1763553591996,2.13189478,138.84,138.82,0.68]
[1763553593283,2.80189478,138.84,138.81,2.38]
[1763553593685,2.13189478,138.83,138.81,2.38]
[1763553594306,0.67,138.84,138.81,2.38]
[1763553594510,2.13189478,138.83,138.81,2.38]
[1763553596098,2.13189478,138.83,138.8,2.38]
[1763553596298,2.80189478,138.83,138.8,1.7]
[1763553596493,2.80189478,138.83,138.81,0.68]
[1763553596692,2.13189478,138.83,138.81,0.68]
[1763553599023,2.80189478,138.83,138.81,0.68]
[1763553599197,2.13189478,138.83,138.81,0.68]
[1763553599709,0.67,138.83,138.81,0.68]
[1763553599890,2.13189478,138.83,138.81,0.68]
[1763553600312,2.13189478,138.83,138.8,1.7]
[1763553600313,2.80189478,138.83,138.8,2.38]
[1763553600926,2.13189478,138.83,138.81,0.68]
[1763553601122,0.67,138.84,138.81,0.68]
[1763553601420,4.78283209,138.86,138.81,2.81189478]
[1763553601595,0.67,138.87,138.82,2.13189478]
[1763553601793,2.13189478,138.87,138.82,10.66882769]
[1763553601998,2.80189478,138.87,138.83,2.81189478]
[1763553602297,2.80189478,138.87,138.84,0.68]
[1763553602518,0.67,138.86,138.84,0.68]
[1763553602719,0.67,138.86,138.84,5.66283209]
[1763553602917,2.80189478,138.86,138.84,4.98283209]
[1763553603100,2.13189478,138.85,138.81,0.68]
[1763553603302,2.13189478,138.82,138.79,19.82096]
[1763553603497,2.13189478,138.81,138.79,19.82096]
[1763553603702,0.67,138.8,138.78,0.68]
[1763553603911,2.80189478,138.8,138.77,2.38]
[1763553604093,2.80189478,138.8,138.78,18.12096]
[1763553604293,2.80189478,138.8,138.77,2.38]
[1763553604592,2.13189478,138.8,138.78,18.80096]
[1763553605018,2.13189478,138.8,138.78,0.68]
[1763553605715,18.12096,138.83,138.78,2.81189478]
[1763553605920,2.13189478,138.82,138.78,2.81189478]
[1763553606221,2.80189478,138.82,138.79,0.68]
[1763553607898,2.13189478,138.82,138.79,0.68]
[1763553608391,2.13189478,138.84,138.8,2.13189478]
[1763553608616,0.67,138.86,138.8,2.13189478]
[1763553608617,20.25285478,138.85,138.8,2.13189478]
[1763553608807,2.13189478,138.85,138.81,0.68]
[1763553609124,2.80189478,138.85,138.81,0.68]
[1763553609306,2.13189478,138.85,138.81,2.38]
[1763553609703,2.80189478,138.85,138.82,0.68]
[1763553609905,2.13189478,138.84,138.82,0.68]
[1763553611321,2.13189478,138.83,138.81,0.68]
[1763553611516,2.13189478,138.84,138.82,0.68]
[1763553612024,2.80189478,138.84,138.81,0.68]
[1763553612223,2.13189478,138.84,138.81,0.68]
[1763553612601,2.13189478,138.83,138.8,18.12096]
[1763553612823,2.13189478,138.83,138.81,0.68]
[1763553613318,2.13189478,138.83,138.8,18.12096]
[1763553613524,19.82096,138.84,138.8,18.12096]
[1763553613704,21.95285478,138.84,138.81,0.68]
[1763553614023,0.67,138.87,138.81,2.81189478]
[1763553614213,18.12096,138.85,138.81,2.81189478]
[1763553614407,18.12096,138.85,138.82,0.68]
[1763553614614,18.12096,138.85,138.82,2.81189478]
[1763553614920,18.12096,138.85,138.82,20.93285478]
[1763553615229,18.12096,138.85,138.83,0.68]
[1763553615608,0.2,138.88,138.83,2.81189478]
[1763553615810,18.12096,138.87,138.83,2.13189478]
[1763553616012,18.12096,138.87,138.84,0.68]
[1763553617027,0.2,138.88,138.84,2.81189478]
[1763553617240,0.87,138.88,138.85,0.68]
[1763553617525,0.2,138.88,138.85,2.81189478]
[1763553617928,0.2,138.88,138.86,0.68]
[1763553618817,0.2,138.88,138.85,0.68]
[1763553619126,3.00189478,138.88,138.85,0.68]
[1763553619429,3.00189478,138.88,138.83,19.60213211]
[1763553619609,2.85189478,138.87,138.84,0.72]
[1763553619809,2.13189478,138.87,138.84,0.72]
[1763553620024,2.85189478,138.87,138.84,0.72]
[1763553620226,2.13189478,138.87,138.84,0.72]
[1763553621333,2.33189478,138.88,138.84,2.85189478]
[1763553621737,2.33189478,138.88,138.85,19.03640681]
[1763553622614,2.33189478,138.88,138.86,0.72]
[1763553622817,3.05189478,138.88,138.85,19.56096]
[1763553623427,0.2,138.88,138.86,0.72]
[1763553624023,0.2,138.88,138.86,18.84096]
[1763553624230,0.2,138.88,138.87,0.69]
[1763553624728,0.2,138.88,138.87,2.82189478]
[1763553626128,0.2,138.88,138.87,5.70821003]
[1763553632543,0.2,138.88,138.87,15.49703772]
[1763553632848,0.2,138.88,138.87,16.68961745]
[1763553633650,0.2,138.88,138.87,34.81057745]
[1763553634764,0.2,138.88,138.87,25.02174976]
[1763553634959,0.2,138.88,138.87,21.69727525]
[1763553635125,0.2,138.88,138.87,25.02174976]
[1763553637027,0.2,138.88,138.87,16.68961745]
[1763553638953,0.2,138.91,138.9,18.12096]
[1763553639165,0.2,138.91,138.9,23.14543451]
[1763553639354,0.2,138.91,138.9,23.83543451]
[1763553639654,0.2,138.91,138.9,26.72091692]
[1763553640137,0.2,138.91,138.9,8.59995692]
[1763553645849,0.2,138.91,138.9,18.38878461]
[1763553647232,0.2,138.91,138.9,36.50974461]
[1763553648231,0.2,138.91,138.9,2.88548241]
[1763553648446,0.92,138.91,138.88,3.32447451]
[1763553648640,0.92,138.91,138.87,5.71447451]
[1763553649344,0.92,138.91,138.87,27.35990902]
[1763553649855,0.71,138.9,138.87,27.35990902]
[1763553650055,0.91,138.91,138.87,27.35990902]
[1763553650752,0.71,138.9,138.87,27.36990902]
[1763553650950,0.71,138.9,138.87,1.7]
[1763553651457,0.71,138.9,138.87,2.4]
[1763553651941,0.71,138.9,138.87,1.7]
[1763553654053,0.71,138.9,138.87,5.72447451]
[1763553654552,0.71,138.9,138.87,2.4]
[1763553655249,0.71,138.9,138.87,1.7]
[1763553655756,0.71,138.9,138.87,5.72447451]
[1763553662554,3.52447451,138.91,138.87,5.72447451]
[1763553662555,0.91,138.91,138.88,4.02447451]
[1763553662766,0.91,138.91,138.87,1.7]
[1763553662767,4.03447451,138.9,138.87,2.4]
[1763553662962,3.32447451,138.88,138.83,3.32447451]
[1763553663292,0.71,138.87,138.83,3.32447451]
[1763553663584,0.71,138.87,138.84,18.12096]
[1763553664048,0.71,138.87,138.84,4.02447451]
[1763553664370,4.03447451,138.88,138.84,5.72447451]
[1763553664545,0.71,138.87,138.84,5.72447451]
[1763553664746,0.71,138.88,138.85,0.7]
[1763553665447,4.03447451,138.88,138.84,5.02447451]
[1763553665959,0.71,138.87,138.84,5.02447451]
[1763553666868,0.71,138.87,138.84,1.7]
[1763553668081,0.71,138.87,138.84,5.02447451]
[1763553669778,0.71,138.87,138.84,4.02447451]
[1763553669955,0.71,138.87,138.85,1.7]
[1763553670155,0.71,138.87,138.84,3.32447451]
[1763553670477,0.71,138.87,138.84,5.02447451]
[1763553670661,0.71,138.87,138.84,3.32447451]
[1763553670853,0.71,138.87,138.84,5.02447451]
[1763553671554,0.71,138.87,138.84,3.32447451]
[1763553671965,0.71,138.87,138.84,5.02447451]
[1763553672276,0.71,138.87,138.84,3.32447451]
[1763553672478,0.71,138.87,138.84,5.02447451]
[1763553672656,0.71,138.87,138.84,3.32447451]
[1763553672864,0.71,138.87,138.84,5.72447451]
[1763553673184,0.71,138.87,138.85,3.32447451]
[1763553674774,4.03447451,138.87,138.82,18.12096]
[1763553674954,4.03447451,138.87,138.82,21.44543451]
[1763553675159,0.71,138.86,138.83,1.7]
[1763553675778,0.71,138.86,138.83,5.02447451]
[1763553676082,4.03447451,138.86,138.81,5.02447451]
[1763553676287,3.32447451,138.85,138.81,1.7]
[1763553676456,3.32447451,138.84,138.81,1.7]
[1763553676653,4.03447451,138.83,138.79,3.32447451]
[1763553676859,4.03447451,138.83,138.79,5.02447451]
[1763553677187,0.71,138.82,138.79,5.02447451]
[1763553677488,3.32447451,138.81,138.77,5.02447451]
[1763553677852,0.71,138.8,138.77,5.02447451]
[1763553678276,0.71,138.8,138.77,5.72447451]
[1763553679268,18.12096,138.85,138.78,3.32447451]
[1763553679269,3.32447451,138.82,138.78,3.32447451]
[1763553679478,0.71,138.81,138.78,3.32447451]
[1763553679781,0.71,138.81,138.78,4.01447451]
[1763553679979,0.71,138.81,138.78,3.32447451]
[1763553680290,0.71,138.81,138.78,4.01447451]
[1763553681578,0.69,138.82,138.79,0.69]
[1763553681770,4.01447451,138.82,138.77,3.32447451]
[1763553681965,4.01447451,138.82,138.75,36.24192]
[1763553681966,3.32447451,138.81,138.78,1.7]
[1763553682168,0.69,138.8,138.77,2.39]
[1763553682474,4.01447451,138.81,138.77,2.39]
[1763553682887,18.12096,138.85,138.74,18.81096]
[1763553682888,3.32447451,138.79,138.74,18.81096]
[1763553683060,0.69,138.8,138.74,18.81096]
[1763553683061,3.32447451,138.77,138.74,2.39]
[1763553684073,0.72,138.76,138.74,1.7]
[1763553684475,3.32447451,138.77,138.74,1.7]
[1763553684775,4.04447451,138.77,138.74,1.7]
[1763553685692,4.04447451,138.77,138.74,2.36]
[1763553686191,4.04447451,138.77,138.74,1.7]
[1763553686499,0.72,138.76,138.74,1.7]
[1763553686874,4.04447451,138.76,138.74,1.7]
[1763553687391,0.72,138.76,138.74,1.7]
[1763553688887,0.72,138.76,138.72,4.08447451]
[1763553689274,0.72,138.76,138.73,0.66]
[1763553690488,0.72,138.79,138.75,3.32447451]
[1763553690678,22.16543451,138.79,138.75,0.66]
[1763553690885,0.72,138.78,138.75,0.66]
[1763553691076,0.72,138.78,138.74,5.02447451]
[1763553691277,0.72,138.78,138.74,1.7]
[1763553691484,0.72,138.78,138.75,0.66]
[1763553692188,21.44543451,138.79,138.75,3.98447451]
[1763553692394,22.16543451,138.79,138.75,3.98447451]
[1763553692577,22.16543451,138.79,138.76,0.66]
[1763553692779,18.84096,138.79,138.76,0.66]
[1763553693175,0.72,138.79,138.76,0.66]
[1763553693890,18.12096,138.81,138.76,0.66]
[1763553694097,3.32447451,138.81,138.77,3.32447451]
[1763553694396,0.72,138.82,138.78,3.32447451]
[1763553694799,2.13115444,138.83,138.79,2.79115444]
[1763553695110,2.13115444,138.83,138.78,2.13115444]
[1763553695111,2.85115444,138.83,138.78,2.13115444]
[1763553695392,0.72,138.82,138.78,2.79115444]
[1763553695795,0.72,138.82,138.79,0.66]
[1763553697496,2.13115444,138.83,138.79,0.66]
[1763553697702,0.72,138.83,138.79,0.66]
[1763553697874,0.72,138.82,138.79,2.79115444]
[1763553700707,0.72,138.83,138.79,2.13115444]
[1763553700908,2.13115444,138.84,138.8,0.66]
[1763553701311,0.72,138.83,138.8,0.66]
[1763553701617,0.72,138.83,138.79,2.79115444]
[1763553703782,0.72,138.83,138.8,0.66]
[1763553704304,9.72948242,138.92,138.82,2.13115444]
[1763553704512,9.72948242,138.92,138.84,2.13115444]
[1763553704513,0.72,138.88,138.84,2.13115444]
[1763553704680,0.72,138.88,138.84,2.79115444]
[1763553705182,0.72,138.88,138.84,2.13115444]
[1763553705807,0.72,138.88,138.85,2.13115444]
[1763553706111,2.85115444,138.88,138.84,2.13115444]
[1763553706679,0.72,138.87,138.84,2.13115444]
[1763553707574,20.25211444,138.85,138.78,2.79115444]
[1763553707778,2.13115444,138.82,138.78,2.79115444]
[1763553707994,2.13115444,138.83,138.78,2.79115444]
[1763553708195,2.13115444,138.83,138.79,0.66]
[1763553708507,2.85115444,138.83,138.79,0.66]
[1763553713017,2.13115444,138.83,138.79,2.79115444]
[1763553713518,2.81115444,138.83,138.8,0.72]
[1763553718020,20.25211444,138.83,138.78,2.13115444]
[1763553718189,2.13115444,138.79,138.75,2.85115444]
[1763553718396,2.13115444,138.79,138.76,0.72]
[1763553718608,2.81115444,138.79,138.76,0.72]
[1763553718811,2.13115444,138.79,138.76,0.72]
[1763553719313,2.81115444,138.8,138.76,0.72]
[1763553721200,19.82096,138.83,138.74,0.72]
[1763553721201,0.68,138.79,138.74,0.72]
[1763553721419,2.81115444,138.79,138.75,0.72]
[1763553721719,2.81115444,138.79,138.75,2.85115444]
[1763553721892,2.38,138.81,138.75,2.85115444]
[1763553722088,2.81115444,138.8,138.76,0.72]
[1763553722288,2.81115444,138.82,138.78,2.13115444]
[1763553722521,2.81115444,138.82,138.78,2.85115444]
[1763553722724,0.68,138.84,138.79,2.85115444]
[1763553722896,0.68,138.84,138.8,0.72]
[1763553722897,2.81115444,138.84,138.8,0.72]
[1763553723096,20.93211444,138.84,138.8,0.72]
[1763553723323,20.93211444,138.84,138.79,2.13115444]
[1763553723324,2.81115444,138.83,138.79,2.13115444]
[1763553723614,2.81115444,138.83,138.79,0.72]
[1763553724797,2.13115444,138.83,138.79,0.72]
[1763553724999,2.13115444,138.81,138.76,2.13115444]
[1763553725214,2.13115444,138.81,138.76,2.85115444]
[1763553725422,0.68,138.8,138.77,0.72]
[1763553727199,2.81115444,138.83,138.78,2.13115444]
[1763553727633,0.68,138.82,138.79,0.72]
[1763553727925,0.68,138.82,138.78,2.85115444]
[1763553728717,2.81115444,138.82,138.78,0.72]
[1763553729102,0.68,138.81,138.78,0.72]